bitfinex/quotes_SOLUSD_20250125
["timestamp","ask_amount","ask_price","bid_price","bid_amount"]
[1737800466207,21.0,247.17,247.0,23.776884]
[1737800466515,20.0,247.17,247.0,23.776884]
[1737800467005,20.0,247.17,246.99,227.7022]
[1737800467006,21.0,247.17,246.99,227.7022]
[1737800467804,20.0,247.13,246.99,227.7022]
[1737800468111,2.88,247.12,246.99,227.7022]
[1737800468297,2.88,247.12,246.99,90.1022]
[1737800468997,2.88,247.12,246.99,83.4708]
[1737800472413,2.88,247.12,247.0,0.037986]
[1737800474902,2.86,247.13,247.0,23.81487]
[1737800475811,2.86,247.13,247.0,0.037986]
[1737800476615,2.86,247.13,247.0,0.100986]
[1737800477392,2.86,247.13,247.0,23.87787]
[1737800477903,2.86,247.13,247.0,243.37787]
[1737800478107,2.86,247.13,247.0,247.42637]
[1737800480496,22.86,247.13,247.0,247.42637]
[1737800480691,22.86,247.13,247.0,243.37787]
[1737800482015,22.86,247.13,247.0,219.600986]
[1737800483813,20.0,247.12,247.0,0.100986]
[1737800484021,24.55943277,247.12,247.0,0.100986]
[1737800484600,20.0,247.12,247.0,0.100986]
[1737800485302,2.84,247.11,247.0,0.100986]
[1737800486398,22.84,247.11,247.0,0.100986]
[1737800488424,24.45887529,247.11,247.0,0.100986]
[1737800490024,20.0,247.07,247.0,0.100986]
[1737800490623,20.0,247.08,247.0,0.100986]
[1737800492104,20.0,247.1,247.0,0.100986]
[1737800492315,44.18110321,247.1,247.0,0.100986]
[1737800493010,4.45887529,247.11,247.0,0.100986]
[1737800493011,24.45887529,247.11,247.0,0.100986]
[1737800493223,20.0,247.1,247.0,0.100986]
[1737800494015,24.45887529,247.11,247.0,0.100986]
[1737800494610,20.0,247.1,247.0,0.100986]
[1737800495217,4.45887529,247.11,247.0,0.100986]
[1737800495734,20.0,247.09,247.0,0.100986]
[1737800497127,4.45887529,247.11,247.0,0.100986]
[1737800497316,2.84,247.11,247.0,0.100986]
[1737800497521,2.84,247.11,247.0,4.149486]
[1737800497935,20.0,247.09,247.0,223.649486]
[1737800498934,20.0,247.1,247.0,223.649486]
[1737800501616,20.0,247.11,247.0,223.649486]
[1737800502018,20.0,247.11,247.0,219.600986]
[1737800504438,20.0,247.1,247.0,219.600986]
[1737800507671,20.0,247.1,247.0,82.000986]
[1737800511042,20.0,247.1,247.01,23.776884]
[1737800511753,20.0,247.1,247.02,6.1107]
[1737800513528,20.0,247.1,247.02,88.0107]
[1737800515245,20.0,247.1,247.02,81.9]
[1737800515633,20.0,247.1,247.0,0.100986]
[1737800522238,22.82,247.1,247.0,0.100986]
[1737800526337,23.776884,247.09,247.0,0.100986]
[1737800526541,20.0,247.07,247.0,0.100986]
[1737800526741,20.0,247.06,247.0,0.100986]
[1737800528478,20.0,247.02,247.0,0.100986]
[1737800528766,20.0,247.02,247.0,0.055886]
[1737800529768,4.30665499,247.06,247.0,0.055886]
[1737800530265,20.0,247.02,247.0,0.055886]
[1737800530438,20.0,247.01,247.0,0.055886]
[1737800531064,20.0,247.02,247.0,0.055886]
[1737800542983,6.1107,247.05,247.0,0.055886]
[1737800543166,4.30665499,247.06,247.0,6.132986]
[1737800543367,2.82,247.11,247.01,1.5539]
[1737800543684,6.1107,247.09,247.01,1.5539]
[1737800543880,20.0,247.06,247.01,1.5539]
[1737800544184,20.0,247.06,247.0,0.055886]
[1737800548894,6.1107,247.09,247.01,7.631]
[1737800549100,3.03674885,247.16,247.01,7.631]
[1737800549290,3.03674885,247.16,247.01,145.231]
[1737800549469,20.0,247.14,247.01,145.231]
[1737800549673,0.03,247.06,247.01,145.231]
[1737800549873,0.03,247.06,247.02,23.776884]
[1737800550274,0.03,247.06,247.03,4.048]
[1737800550572,0.03,247.06,247.01,7.631]
[1737800551189,0.03,247.06,247.02,23.776884]
[1737800552090,0.03,247.06,247.01,7.631]
[1737800553681,0.03,247.06,247.02,23.776884]
[1737800554895,0.03,247.06,247.01,7.631]
[1737800559902,0.03,247.06,247.0,0.055886]
[1737800560097,20.0,247.03,247.0,0.055886]
[1737800565485,8.0235,247.04,247.0,0.055886]
[1737800565796,0.03,247.06,247.0,0.055886]
[1737800566396,5.933262,247.06,247.0,0.055886]
[1737800566597,20.0,247.03,247.0,0.055886]
[1737800566993,0.03,247.06,247.0,0.055886]
[1737800567717,0.03,247.06,247.0,137.655886]
[1737800573000,0.03,247.06,247.0,141.704386]
[1737800575609,0.03,247.06,247.0,223.604386]
[1737800576211,0.03,247.06,247.01,8.0235]
[1737800576712,0.03,247.06,247.02,4.0482]
[1737800577115,0.03,247.06,247.01,8.0235]
[1737800578798,20.0,247.05,247.0,0.055886]
[1737800583016,0.03,247.06,247.0,0.055886]
[1737800584128,20.03,247.06,247.0,0.055886]
[1737800584822,23.776884,247.05,247.0,0.055886]
[1737800586621,20.0,247.02,247.0,0.055886]
[1737800591312,0.03,247.06,247.0,0.055886]
[1737800592630,20.0,247.04,247.0,0.055886]
[1737800598322,0.03,247.06,247.0,0.055886]
[1737800603333,20.03,247.06,247.0,0.055886]
[1737800606414,0.03,247.06,247.0,0.055886]
[1737800608341,0.03,247.06,247.01,1.5987]
[1737800608737,0.03,247.06,247.02,6.2928]
[1737800614346,1.0,247.03,247.0,0.007486]
[1737800614525,20.0,246.99,246.91,0.063]
[1737800620244,4.46937892,247.02,246.91,0.063]
[1737800621154,20.0,247.01,246.91,0.063]
[1737800622356,20.0,247.01,246.91,137.663]
[1737800623031,21.64937892,247.02,246.91,137.663]
[1737800623232,21.64937892,247.02,246.92,4.0498]
[1737800623849,20.0,247.02,246.92,4.0498]
[1737800626440,20.0,247.02,246.92,223.5498]
[1737800629038,20.0,247.05,246.92,223.5498]
[1737800629451,20.0,247.05,246.93,27.826584]
[1737800629651,0.03,247.06,246.94,6.2126]
[1737800629863,20.03,247.06,246.94,6.2126]
[1737800631340,4.61762976,247.06,246.94,6.2126]
[1737800631957,20.0,247.02,246.94,6.2126]
[1737800633033,20.0,247.02,246.92,81.9]
[1737800633255,20.0,246.98,246.91,0.063]
[1737800634648,20.0,246.98,246.92,0.063]
[1737800635460,4.58762976,247.02,246.92,0.063]
[1737800635643,0.03,247.06,246.92,219.563]
[1737800635963,0.03,247.06,246.93,6.2126]
[1737800636443,20.03,247.06,246.93,6.2126]
[1737800636852,0.03,247.06,246.93,10.2623]
[1737800637038,0.03,247.06,246.93,34.039184]
[1737800637245,0.03,247.06,246.94,25.400484]
[1737800637847,0.03,247.06,246.94,244.900484]
[1737800638456,0.03,247.06,246.96,23.776884]
[1737800639565,0.03,247.06,246.97,4.049]
[1737800639777,0.03,247.06,246.97,141.649]
[1737800640550,0.03,247.06,246.97,137.6]
[1737800641159,20.0,247.04,246.97,137.6]
[1737800641369,20.0,247.04,246.94,1.6236]
[1737800642178,0.03,247.06,246.94,1.6236]
[1737800643050,0.03,247.06,246.95,23.776884]
[1737800647470,0.03,247.06,246.95,243.276884]
[1737800648453,0.03,247.06,246.95,219.5]
[1737800655572,0.03,247.06,246.96,23.776884]
[1737800656372,0.03,247.06,246.95,219.5]
[1737800662082,0.03,247.06,246.95,219.563]
[1737800670981,0.03,247.06,246.95,81.963]
[1737800674280,0.03,247.06,246.96,23.776884]
[1737800674471,0.03,247.06,246.97,7.8642]
[1737800679892,0.03,247.06,246.97,227.3642]
[1737800684796,0.03,247.06,246.97,219.5]
[1737800693106,20.03,247.06,246.97,219.5]
[1737800694810,20.03,247.06,246.97,81.9]
[1737800694999,1.5393,247.05,246.97,81.9]
[1737800700721,1.5393,247.05,246.95,137.663]
[1737800700903,20.0,247.04,246.95,137.663]
[1737800702903,23.776884,247.03,246.95,0.063]
[1737800703108,20.0,247.0,246.95,0.063]
[1737800703706,23.776884,246.99,246.95,0.063]
[1737800703911,20.0,246.96,246.95,0.063]
[1737800712230,21.65006292,246.96,246.95,0.063]
[1737800715939,20.0,246.94,246.8,227.0972]
[1737800716133,20.0,246.94,246.8,145.1972]
[1737800719433,20.0,246.9,246.8,145.1972]
[1737800720535,23.19586292,246.96,246.81,23.776884]
[1737800720742,3.19586292,246.96,246.81,23.776884]
[1737800721119,20.0,246.94,246.81,23.776884]
[1737800721530,21.65006292,246.96,246.82,4.0515]
[1737800721742,20.0,246.96,246.82,4.0515]
[1737800724422,20.0,246.96,246.82,141.6515]
[1737800726744,20.0,246.95,246.82,141.6515]
[1737800727139,43.776884,246.94,246.82,137.6]
[1737800727320,43.776884,246.94,246.8,149.2489]
[1737800729124,20.0,246.95,246.8,149.2489]
[1737800730224,20.0,246.95,246.8,149.3119]
[1737800736235,43.776884,246.94,246.8,145.2602]
[1737800736833,48.10954267,246.94,246.8,145.2602]
[1737800738026,20.0,246.89,246.8,137.663]
[1737800738232,20.0,246.88,246.8,0.063]
[1737800744276,21.57580231,246.88,246.8,0.063]
[1737800747280,20.0,246.84,246.8,0.063]
[1737800747669,21.57580231,246.88,246.8,0.063]
[1737800747974,20.0,246.88,246.8,0.063]
[1737800752063,16.210706,246.87,246.8,0.063]
[1737800752273,20.0,246.84,246.8,0.063]
[1737800759486,20.0,246.88,246.8,0.063]
[1737800759873,22.82,246.88,246.8,0.063]
[1737800761170,20.0,246.84,246.8,0.063]
[1737800763173,22.82,246.88,246.8,0.063]
[1737800763581,20.0,246.87,246.8,0.063]
[1737800767372,23.776884,246.87,246.8,0.063]
[1737800767890,20.0,246.85,246.8,0.063]
[1737800773589,20.0,246.84,246.8,0.063]
[1737800774179,20.0,246.81,246.8,0.063]
[1737800774801,43.776884,246.81,246.8,0.063]
[1737800776091,44.18110321,246.81,246.8,0.063]
[1737800776299,43.776884,246.81,246.8,0.063]
[1737800779906,1.65329681,246.82,246.8,0.063]
[1737800780090,23.776884,246.84,246.8,0.063]
[1737800780299,20.0,246.81,246.8,0.063]
[1737800780695,2.82,246.84,246.8,0.063]
[1737800781097,26.596884,246.84,246.8,0.063]
[1737800781412,20.0,246.81,246.8,0.063]
[1737800783512,2.82,246.84,246.8,0.063]
[1737800783916,22.82,246.84,246.8,0.063]
[1737800790821,2.82,246.84,246.8,0.063]
[1737800796227,20.0,246.83,246.8,0.063]
[1737800802625,20.0,246.79,246.74,1.5791]
[1737800802816,20.0,246.79,246.72,6.5491]
[1737800808138,20.0,246.79,246.72,0.063]
[1737800808715,20.0,246.8,246.72,0.063]
[1737800809049,20.0,246.75,246.72,0.063]
[1737800809417,23.776884,246.74,246.72,0.063]
[1737800809615,4.33265867,246.79,246.72,0.063]
[1737800810627,20.0,246.75,246.72,0.063]
[1737800811219,23.776884,246.74,246.72,0.063]
[1737800811521,0.40421921,246.81,246.72,0.063]
[1737800811727,20.0,246.78,246.72,0.063]
[1737800812126,20.0,246.76,246.72,0.063]
[1737800814246,16.053976,246.76,246.72,0.063]
[1737800815337,23.776884,246.78,246.72,0.063]
[1737800815535,4.33265867,246.77,246.72,0.063]
[1737800815740,23.776884,246.76,246.72,0.063]
[1737800816336,23.776884,246.73,246.72,0.063]
[1737800816534,43.776884,246.73,246.72,0.063]
[1737800816720,23.776884,246.73,246.72,0.063]
[1737800817443,43.776884,246.73,246.72,0.063]
[1737800817644,23.776884,246.73,246.72,0.063]
[1737800818745,4.33265867,246.76,246.72,0.063]
[1737800818960,24.33265867,246.76,246.72,0.063]
[1737800819540,23.76035867,246.76,246.72,0.063]
[1737800819738,20.0,246.75,246.72,0.063]
[1737800823026,25.38427484,246.78,246.72,0.063]
[1737800823230,23.776884,246.74,246.72,0.063]
[1737800823943,20.0,246.75,246.72,0.063]
[1737800829858,43.776884,246.73,246.72,0.063]
[1737800835765,44.18110321,246.73,246.72,0.063]
[1737800835959,20.0,246.69,246.61,6.3381]
[1737800839174,4.29132589,246.73,246.61,6.3381]
[1737800839351,4.29132589,246.73,246.58,139.1165]
[1737800839550,20.0,246.7,246.58,139.1165]
[1737800839768,2.82,246.72,246.58,139.1165]
[1737800839966,20.0,246.69,246.58,139.1165]
[1737800843272,20.0,246.69,246.58,1.5165]
[1737800843868,20.0,246.65,246.58,1.5165]
[1737800844247,20.0,246.61,246.55,0.063]
[1737800846480,4.29132589,246.65,246.55,0.063]
[1737800846853,23.776884,246.64,246.55,0.063]
[1737800847047,20.0,246.61,246.55,0.063]
[1737800847991,23.776884,246.6,246.55,0.063]
[1737800848272,20.0,246.61,246.55,0.063]
[1737800848273,1.5641,246.66,246.55,0.063]
[1737800848459,20.0,246.62,246.55,0.063]
[1737800848865,20.0,246.58,246.55,0.063]
[1737800849462,20.0,246.6,246.55,0.063]
[1737800851164,23.776884,246.59,246.55,0.063]
[1737800851377,20.0,246.56,246.55,0.063]
[1737800852174,43.776884,246.56,246.55,0.063]
[1737800855462,20.0,246.56,246.55,0.063]
[1737800855664,2.82,246.59,246.55,0.063]
[1737800856174,43.776884,246.58,246.55,0.063]
[1737800856488,20.0,246.56,246.55,0.063]
[1737800858689,20.0,246.57,246.55,0.063]
[1737800864287,4.44299256,246.6,246.55,0.063]
[1737800864595,20.0,246.58,246.55,0.063]
[1737800865690,20.0,246.6,246.55,0.063]
[1737800867988,4.44299256,246.62,246.55,0.063]
[1737800868189,81.4,246.71,246.56,8.1417]
[1737800868393,0.063,246.72,246.56,8.1417]
[1737800869072,0.46721921,246.72,246.56,8.1417]
[1737800869811,20.0,246.66,246.56,8.1417]
[1737800870191,20.0,246.66,246.56,149.7974]
[1737800870531,20.0,246.7,246.56,149.7974]
[1737800871279,0.063,246.72,246.56,149.7974]
[1737800871923,0.063,246.72,246.56,231.6974]
[1737800872133,0.063,246.72,246.57,1.0]
[1737800872619,0.063,246.72,246.56,231.6974]
[1737800872620,20.0,246.7,246.56,231.6974]
[1737800877421,0.063,246.72,246.58,4.0554]
[1737800877628,0.063,246.72,246.59,6.2661]
[1737800878605,0.063,246.72,246.6,4.0551]
[1737800879723,20.0,246.71,246.59,6.2661]
[1737800880928,20.0,246.71,246.59,10.3213]
[1737800881231,0.063,246.72,246.59,10.3213]
[1737800881423,0.063,246.72,246.59,229.8213]
[1737800881624,0.063,246.72,246.6,1.5934]
[1737800882527,0.063,246.72,246.61,4.0549]
[1737800882702,0.063,246.72,246.61,223.5549]
[1737800882903,0.063,246.72,246.62,6.2661]
[1737800884223,0.063,246.72,246.65,30.042984]
[1737800884826,0.063,246.72,246.65,6.2661]
[1737800889529,0.063,246.72,246.65,10.3203]
[1737800890129,0.063,246.72,246.65,147.9203]
[1737800890335,0.063,246.72,246.65,148.9203]
[1737800891424,0.063,246.72,246.67,4.0539]
[1737800891636,0.063,246.72,246.67,223.5539]
[1737800893629,0.063,246.72,246.67,219.5]
[1737800893830,0.063,246.72,246.67,223.5538]
[1737800894541,0.063,246.72,246.68,23.776884]
[1737800894740,0.063,246.72,246.7,23.776884]
[1737800894924,0.063,246.72,246.7,24.776884]
[1737800895119,43.78,246.91,246.72,1.0]
[1737800895330,43.78,246.91,246.76,1.6207]
[1737800895637,43.78,246.91,246.78,4.0521]
[1737800895843,43.78,246.91,246.78,141.6521]
[1737800896018,20.0,246.88,246.78,141.6521]
[1737800896343,20.0,246.88,246.79,24.776884]
[1737800896549,0.03,246.95,246.79,163.376884]
[1737800896846,0.03,246.95,246.84,6.5673]
[1737800897029,0.03,246.95,246.84,144.1673]
[1737800898919,23.806884,246.95,246.84,6.5673]
[1737800899124,20.03,246.92,246.84,6.5673]
[1737800904031,20.03,246.92,246.78,6.5673]
[1737800904032,20.0,246.88,246.78,6.5673]
[1737800904651,20.0,246.84,246.78,6.5673]
[1737800905143,20.0,246.8,246.72,6.5973]
[1737800905339,24.18110321,246.79,246.72,0.03]
[1737800905646,23.776884,246.79,246.72,0.03]
[1737800905953,20.0,246.73,246.72,0.03]
[1737800906331,1.5629,246.8,246.72,0.03]
[1737800906856,20.0,246.76,246.72,0.03]
[1737800907352,20.0,246.74,246.72,0.03]
[1737800911039,6.09167894,246.84,246.72,0.03]
[1737800911233,2.92,246.82,246.72,0.03]
[1737800911927,20.0,246.79,246.72,0.03]
[1737800912127,20.0,246.75,246.72,0.03]
[1737800912356,26.41461944,246.74,246.55,137.663]
[1737800912534,23.776884,246.73,246.55,137.663]
[1737800912862,20.0,246.62,246.55,0.063]
[1737800913556,20.0,246.65,246.55,0.063]
[1737800914149,20.0,246.62,246.55,0.063]
[1737800914755,2.96,246.66,246.55,0.063]
[1737800915060,2.96,246.66,246.56,4.0558]
[1737800915439,20.0,246.66,246.55,0.063]
[1737800915636,20.0,246.66,246.55,4.1188]
[1737800917955,20.0,246.66,246.55,0.063]
[1737800919247,20.0,246.66,246.55,4.1189]
[1737800920457,2.98,246.72,246.55,223.6189]
[1737800920660,131.6482,246.83,246.56,1.0]
[1737800920860,2.96,246.73,246.56,219.5]
[1737800921164,2.96,246.73,246.57,1.0]
[1737800921663,2.96,246.73,246.58,4.0554]
[1737800922046,20.0,246.71,246.58,4.0554]
[1737800922246,20.0,246.71,246.58,14.194]
[1737800922644,2.96,246.74,246.55,0.063]
[1737800922645,23.776884,246.7,246.55,0.063]
[1737800922849,44.18110321,246.7,246.55,0.063]
[1737800923043,20.0,246.62,246.55,0.063]
[1737800923243,23.776884,246.65,246.39,1.0]
[1737800923244,20.0,246.58,246.39,1.0]
[1737800923451,0.40421921,246.57,246.39,138.6]
[1737800923645,23.776884,246.57,246.39,138.6]
[1737800923865,20.0,246.54,246.39,138.6]
[1737800924051,2.98,246.61,246.43,1.6179]
[1737800924753,2.98,246.61,246.44,6.3989]
[1737800924957,20.0,246.56,246.44,6.3989]
[1737800925150,20.0,246.56,246.44,143.9989]
[1737800925469,2.98,246.61,246.44,143.9989]
[1737800925648,20.0,246.58,246.44,148.0565]
[1737800926761,20.0,246.54,246.44,143.9989]
[1737800926970,43.776884,246.57,246.44,6.3989]
[1737800928162,0.40421921,246.56,246.43,0.03]
[1737800930564,20.0,246.52,246.43,0.03]
[1737800930754,20.0,246.48,246.43,0.03]
[1737800930970,3.08,246.47,246.43,0.03]
[1737800932143,20.0,246.46,246.43,0.03]
[1737800933069,1.40421921,246.45,246.37,0.03]
[1737800933282,20.0,246.44,246.37,0.03]
[1737800933753,23.776884,246.43,246.37,0.03]
[1737800933952,23.776884,246.39,246.37,0.03]
[1737800934357,0.40421921,246.45,246.37,0.03]
[1737800935254,20.0,246.44,246.37,0.03]
[1737800935463,0.40421921,246.43,246.37,0.03]
[1737800936648,20.0,246.4,246.37,0.03]
[1737800937061,23.776884,246.39,246.37,0.03]
[1737800937659,20.0,246.44,246.37,0.03]
[1737800938371,0.40421921,246.43,246.37,0.03]
[1737800938563,20.0,246.4,246.37,0.03]
[1737800939166,3.18,246.41,246.37,0.03]
[1737800939364,3.18,246.43,246.37,0.03]
[1737800939565,20.0,246.39,246.37,0.03]
[1737800940357,3.18,246.44,246.37,0.03]
[1737800942787,3.16,246.47,246.37,0.03]
[1737800943104,3.56421921,246.47,246.37,0.03]
[1737800943660,23.776884,246.46,246.37,0.03]
[1737800944491,0.40421921,246.48,246.37,0.03]
[1737800944791,1.61184018,246.5,246.37,0.03]
[1737800944792,3.16,246.49,246.37,0.03]
[1737800944992,20.0,246.46,246.37,0.03]
[1737800945562,20.0,246.48,246.37,0.03]
[1737800950389,44.18110321,246.51,246.37,0.03]
[1737800951790,0.40421921,246.51,246.37,0.03]
[1737800951969,3.52421921,246.54,246.37,0.03]
[1737800952176,3.12,246.54,246.38,1.6425]
[1737800952491,3.12,246.56,246.38,139.2425]
[1737800952894,20.0,246.55,246.39,4.0586]
[1737800953603,0.40421921,246.56,246.4,6.4928]
[1737800953898,27.30110321,246.58,246.4,6.4928]
[1737800954102,23.776884,246.57,246.4,6.4928]
[1737800954310,1.60423994,246.6,246.4,6.4928]
[1737800954509,3.12,246.59,246.41,1.0]
[1737800954979,3.12,246.62,246.44,4.0577]
[1737800955183,0.40421921,246.61,246.44,4.0577]
[1737800955380,0.063,246.51,246.44,4.0577]
[1737800955575,0.063,246.51,246.44,141.6577]
[1737800957400,0.063,246.51,246.45,7.6427]
[1737800957694,0.063,246.51,246.45,8.6427]
[1737800957893,0.063,246.51,246.45,7.6427]
[1737800958591,0.063,246.51,246.46,4.0574]
[1737800959289,0.063,246.51,246.46,141.6574]
[1737800964895,0.063,246.51,246.45,7.6427]
[1737800965576,20.0,246.49,246.38,7.6427]
[1737800965776,20.0,246.49,246.38,149.3014]
[1737800966382,0.063,246.51,246.38,149.3014]
[1737800968599,24.18110321,246.57,246.38,149.3014]
[1737800969684,24.18110321,246.57,246.38,149.3314]
[1737800970978,20.0,246.54,246.38,150.3314]
[1737800971578,20.0,246.54,246.38,149.3314]
[1737800971992,24.18110321,246.57,246.39,5.0586]
[1737800971993,0.40421921,246.57,246.39,5.0586]
[1737800972188,23.776884,246.54,246.39,4.0586]
[1737800972397,23.776884,246.54,246.38,149.3314]
[1737800972708,20.40421921,246.57,246.39,1.0]
[1737800972881,20.0,246.53,246.38,7.6727]
[1737800973199,0.40421921,246.52,246.38,7.6727]
[1737800973403,3.08,246.51,246.38,7.6727]
[1737800973589,20.0,246.47,246.38,7.6727]
[1737800977893,3.08,246.51,246.38,11.7314]
[1737800978208,0.40421921,246.59,246.38,149.3314]
[1737800978406,3.08,246.58,246.38,149.3314]
[1737800979092,43.776884,246.57,246.38,149.3314]
[1737800981286,43.776884,246.57,246.38,150.3314]
[1737800981590,43.776884,246.57,246.38,145.2727]
[1737800981591,0.40421921,246.56,246.38,145.2727]
[1737800982901,0.40421921,246.56,246.38,7.6727]
[1737800983289,0.40421921,246.56,246.38,11.7313]
[1737800984316,43.776884,246.57,246.38,11.7313]
[1737800985810,1.62462349,246.59,246.39,24.776884]
[1737800986013,3.06,246.6,246.4,6.3854]
[1737800986216,20.0,246.59,246.4,6.3854]
[1737800986910,20.0,246.59,246.41,4.0582]
[1737800987115,20.0,246.58,246.41,4.0582]
[1737800987286,20.0,246.57,246.41,4.0582]
[1737800987915,20.0,246.57,246.43,4.0579]
[1737800988129,20.0,246.57,246.43,141.6579]
[1737800991104,20.0,246.57,246.43,137.6]
[1737800992909,20.0,246.57,246.43,141.6578]
[1737800994621,20.0,246.57,246.44,6.2234]
[1737800994796,20.0,246.59,246.45,4.0576]
[1737800997818,20.0,246.59,246.45,141.6576]
[1737801000224,20.0,246.59,246.46,29.471584]
[1737801000417,3.0,246.67,246.46,29.471584]
[1737801000724,23.776884,246.66,246.46,248.971584]
[1737801000906,23.776884,246.66,246.47,6.3074]
[1737801001224,20.0,246.63,246.47,6.3074]
[1737801001398,20.0,246.63,246.48,4.0571]
[1737801003743,20.0,246.63,246.48,223.5571]
[1737801004037,3.0,246.68,246.5,7.9448]
[1737801004704,20.0,246.67,246.5,7.9448]
[1737801005320,20.0,246.67,246.51,4.0566]
[1737801005525,20.0,246.67,246.51,223.5566]
[1737801007028,20.0,246.67,246.54,1.6374]
[1737801007223,1.61585639,246.71,246.55,30.084284]
[1737801007432,0.063,246.72,246.55,30.084284]
[1737801007612,1.69183027,246.72,246.55,167.684284]
[1737801007818,20.0,246.71,246.55,161.376884]
[1737801008023,20.0,246.71,246.56,7.9448]
[1737801008620,1.69183027,246.72,246.57,4.0556]
[1737801008815,0.063,246.72,246.58,31.721684]
[1737801009022,0.063,246.72,246.59,6.3074]
[1737801009529,0.063,246.72,246.61,1.6374]
[1737801009735,0.063,246.72,246.62,6.3074]
[1737801009940,0.063,246.72,246.62,147.9621]
[1737801011031,0.063,246.72,246.63,24.776884]
[1737801011214,0.063,246.72,246.63,162.376884]
[1737801011550,0.063,246.72,246.64,1.6374]
[1737801012552,0.063,246.72,246.65,4.0543]
[1737801013223,0.063,246.72,246.66,6.3074]
[1737801013533,0.063,246.72,246.66,143.9074]
[1737801013854,0.063,246.72,246.68,23.776884]
[1737801014049,0.063,246.72,246.68,161.376884]
[1737801014349,0.063,246.72,246.69,6.3074]
[1737801014561,0.063,246.72,246.7,4.0535]
[1737801015456,0.063,246.76,246.7,4.0535]
[1737801016425,0.063,246.76,246.69,6.3074]
[1737801017128,0.063,246.76,246.69,10.361]
[1737801017659,0.063,246.76,246.71,1.5537]
[1737801017951,0.063,246.76,246.72,23.776884]
[1737801018176,0.063,246.76,246.74,24.776884]
[1737801018324,0.063,246.82,246.74,24.776884]
[1737801018523,0.063,246.82,246.75,4.0526]
[1737801019362,0.063,246.82,246.74,137.6]
[1737801020141,20.0,246.81,246.74,137.6]
[1737801020331,20.0,246.81,246.73,6.1386]
[1737801021158,0.063,246.82,246.73,229.6915]
[1737801022646,0.063,246.82,246.74,23.776884]
[1737801022864,0.063,246.82,246.74,24.776884]
[1737801023167,0.063,246.82,246.76,23.776884]
[1737801023774,0.063,246.82,246.75,1.5537]
[1737801027577,0.063,246.82,246.75,221.0537]
[1737801028051,0.063,246.82,246.75,225.1063]
[1737801029470,0.063,246.82,246.77,4.0523]
[1737801032566,0.063,246.82,246.76,28.829384]
[1737801032761,0.063,246.82,246.79,23.776884]
[1737801032974,0.063,246.82,246.79,243.276884]